fUST/lending_fUST_20240212
["ID","MTS","AMOUNT","RATE_DAILY","PERIOD"]
[313812253,1707735046289,-4510.66,0.00020773,2]
[313812255,1707735046298,-6435.92,0.00020773,2]
[313812257,1707735046307,-394.72,0.00020773,2]
[313812259,1707735046316,-500.0,0.00020773,2]
[313812261,1707735046325,-500.0,0.00020773,2]
[313812263,1707735046334,-2020.77,0.00020774,2]
[313812265,1707735046343,-500.0,0.00020774,2]
[313812267,1707735046352,-500.0,0.00020774,2]
[313812269,1707735046362,-774.58,0.00020774,2]
[313812271,1707735046372,-5879.84,0.00020774,2]
[313812273,1707735046381,-500.0,0.00020774,2]
[313812275,1707735046390,-500.0,0.00020774,2]
[313812277,1707735046399,-500.0,0.00020774,2]
[313812279,1707735046408,-1440.13,0.00020774,2]
[313812281,1707735046417,-2453.85,0.00020774,2]
[313812283,1707735046427,-533.97,0.00020774,2]
[313812285,1707735046440,-500.0,0.00020774,2]
[313812287,1707735046449,-500.0,0.00020775,2]
[313812289,1707735046459,-571.64987201,0.00020775,2]
[313812291,1707735046468,-500.0,0.00020775,2]
[313812293,1707735046478,-504.10162267,0.00020775,2]
[313812295,1707735046487,-500.0,0.00020775,2]
[313812297,1707735046496,-500.0,0.00020775,2]
[313812299,1707735046505,-814.48,0.00020775,2]
[313812301,1707735046518,-500.0,0.00020775,2]
[313812303,1707735046527,-500.0,0.00020775,2]
[313812305,1707735046537,-500.0,0.00020775,2]
[313812307,1707735046546,-500.0,0.00020775,2]
[313812309,1707735046555,-500.0,0.00020775,2]
[313812311,1707735046564,-500.0,0.00020775,2]
[313812313,1707735046573,-632.03551486,0.00020775,2]
[313812315,1707735046582,-531.93805743,0.00020775,2]
[313812317,1707735046591,-675.37,0.00020775,2]
[313812319,1707735046600,-500.0,0.00020775,2]
[313812321,1707735046609,-617.53,0.00020775,2]
[313812323,1707735046618,-759.19,0.00020775,2]
[313812325,1707735046627,-190.152765,0.00020775,2]
[313812327,1707735046636,-190.152765,0.00020775,2]
[313812329,1707735046645,-500.0,0.00020775,2]
[313812331,1707735046653,-512.16,0.00020775,2]
[313812333,1707735046662,-944.32,0.00020775,2]
[313812335,1707735046671,-500.0,0.00020775,2]
[313812337,1707735046682,-151.0,0.00020775,2]
[313812339,1707735046691,-151.0,0.00020775,2]
[313812341,1707735046701,-603.25,0.00020775,2]
[313812343,1707735046710,-5350.77,0.00020775,2]
[313812345,1707735046719,-467.05,0.00020775,2]
[313812347,1707735046728,-151.0,0.00020775,2]
[313812349,1707735046738,-646.94,0.00020775,2]
[313812351,1707735046747,-3234.08,0.00020775,2]
[313812353,1707735046755,-500.0,0.00020776,2]
[313812355,1707735046765,-500.0,0.00020776,2]
[313812357,1707735046774,-500.0,0.00020776,2]
[313812359,1707735046783,-488.04280479,0.00020776,2]
[313812361,1707735046791,-306.0,0.000208,2]
[313812363,1707735046800,-433.41132184,0.0002082,2]
[313812365,1707735046810,-542.40294285,0.0002082,2]
[313812367,1707735046819,-324.92158307,0.0002082,2]
[313812369,1707735046828,-1741.68700077,0.00020821,2]
[313812371,1707735046837,-500.0,0.00020821,2]
[313812373,1707735046846,-500.0,0.00020821,2]
[313812375,1707735046855,-500.0,0.00020821,2]
[313812377,1707735046865,-512.16,0.00020821,2]
[313812379,1707735046874,-512.16,0.00020821,2]
[313812381,1707735046883,-512.16,0.00020821,2]
[313812383,1707735046893,-234.15929647,0.00020822,2]
[313812385,1707735046902,-500.0,0.00020822,2]
[313812387,1707735046911,-500.0,0.00020822,2]
[313812389,1707735046919,-500.0,0.00020822,2]
[313812391,1707735046929,-500.0,0.00020822,2]
[313812393,1707735046939,-500.0,0.00020822,2]
[313812395,1707735046948,-500.0,0.00020822,2]
[313812397,1707735046957,-500.0,0.00020822,2]
[313812399,1707735046966,-500.0,0.00020822,2]
[313812401,1707735046974,-500.0,0.00020822,2]
[313812403,1707735046983,-500.0,0.00020822,2]
[313812405,1707735046993,-500.0,0.00020822,2]
[313812407,1707735047002,-500.0,0.00020822,2]
[313812409,1707735047011,-500.0,0.00020822,2]
[313812411,1707735047020,-500.0,0.00020822,2]
[313812413,1707735047029,-500.0,0.00020822,2]
[313812415,1707735047039,-500.0,0.00020822,2]
[313812417,1707735047048,-500.0,0.00020822,2]
[313812419,1707735047057,-500.0,0.00020822,2]
[313812421,1707735047066,-500.0,0.00020822,2]
[313812423,1707735047074,-500.0,0.00020822,2]
[313812425,1707735047084,-500.0,0.00020822,2]
[313812427,1707735047093,-500.0,0.00020822,2]
[313812429,1707735047102,-500.0,0.00020822,2]
[313812431,1707735047111,-500.0,0.00020822,2]
[313812432,1707735047120,-500.0,0.00020822,2]
[313812433,1707735047129,-500.0,0.00020822,2]
[313812434,1707735047138,-579.95791497,0.00020822,2]
[313812435,1707735047147,-500.0,0.00020822,2]
[313812436,1707735047157,-500.0,0.00020822,2]
[313812437,1707735047166,-500.0,0.00020822,2]
[313812438,1707735047175,-291.46766049,0.00020822,2]
[313812440,1707735047184,-500.0,0.00020822,2]
[313812442,1707735047193,-500.0,0.00020822,2]
[313812444,1707735047202,-500.0,0.00020822,2]
[313812446,1707735047211,-500.0,0.00020822,2]
[313812448,1707735047220,-500.0,0.00020822,2]
[313812450,1707735047230,-500.0,0.00020822,2]
[313812452,1707735047238,-500.0,0.00020822,2]
[313812455,1707735047247,-500.0,0.00020822,2]
[313812456,1707735047257,-550.32995968,0.00020822,2]
[313812459,1707735047266,-568.65359106,0.00020822,2]
[313812461,1707735047275,-500.0,0.00020822,2]
[313812462,1707735047284,-680.38989099,0.00020822,2]
[313812464,1707735047293,-531.29348456,0.00020822,2]
[313812466,1707735047302,-680.38989099,0.00020822,2]
[313812469,1707735047312,-531.29348456,0.00020822,2]
[313812471,1707735047321,-680.38989099,0.00020822,2]
[313812473,1707735047330,-531.29348456,0.00020822,2]
[313812475,1707735047339,-680.38989099,0.00020822,2]
[313812477,1707735047348,-531.29348456,0.00020822,2]
[313812479,1707735047357,-680.38989099,0.00020822,2]
[313812481,1707735047367,-531.29348456,0.00020822,2]
[313812483,1707735047377,-680.38989099,0.00020822,2]
[313812485,1707735047386,-531.29348456,0.00020822,2]
[313812487,1707735047395,-680.38989099,0.00020822,2]
[313812489,1707735047404,-531.29348456,0.00020822,2]
[313812491,1707735047412,-680.38989099,0.00020822,2]
[313812493,1707735047421,-531.29348456,0.00020822,2]
[313812495,1707735047434,-680.38989099,0.00020822,2]
[313812508,1707735047443,-531.29348456,0.00020822,2]
[313812510,1707735047550,-680.38989099,0.00020822,2]
[313812512,1707735047560,-531.29348456,0.00020822,2]
[313812514,1707735047569,-680.38989099,0.00020822,2]
[313812516,1707735047578,-531.29348456,0.00020822,2]
[313812518,1707735047587,-680.38989099,0.00020822,2]
[313812520,1707735047596,-531.29348456,0.00020822,2]
[313812522,1707735047605,-680.38989099,0.00020822,2]
[313812524,1707735047615,-680.38989099,0.00020822,2]
[313812526,1707735047624,-531.29348456,0.00020822,2]
[313812528,1707735047633,-680.38989099,0.00020822,2]
[313812530,1707735047642,-531.29348456,0.00020822,2]
[313812532,1707735047651,-680.38989099,0.00020822,2]
[313812534,1707735047660,-531.29348456,0.00020822,2]
[313812536,1707735047669,-680.38989099,0.00020822,2]
[313812538,1707735047678,-680.38989099,0.00020822,2]
[313812540,1707735047688,-531.29348456,0.00020822,2]
[313812542,1707735047697,-680.38989099,0.00020822,2]
[313812544,1707735047706,-531.29348456,0.00020822,2]
[313812546,1707735047715,-680.38989099,0.00020822,2]
[313812548,1707735047724,-531.29348456,0.00020822,2]
[313812550,1707735047733,-680.38989099,0.00020822,2]
[313812552,1707735047742,-531.29348456,0.00020822,2]
[313812554,1707735047752,-531.29348456,0.00020822,2]
[313812556,1707735047761,-680.38989099,0.00020822,2]
[313812558,1707735047770,-531.29348456,0.00020822,2]
[313812560,1707735047778,-680.38989099,0.00020822,2]
[313812562,1707735047787,-531.29348456,0.00020822,2]
[313812564,1707735047796,-680.38989099,0.00020822,2]
[313812566,1707735047805,-531.29348456,0.00020822,2]
[313812568,1707735047814,-680.38989099,0.00020822,2]
[313812570,1707735047823,-680.38989099,0.00020822,2]
[313812572,1707735047832,-531.29348456,0.00020822,2]
[313812574,1707735047841,-680.38989099,0.00020822,2]
[313812576,1707735047850,-531.29348456,0.00020822,2]
[313812578,1707735047859,-680.38989099,0.00020822,2]
[313812580,1707735047868,-531.29348456,0.00020822,2]
[313812582,1707735047877,-680.38989099,0.00020822,2]
[313812584,1707735047886,-531.29348456,0.00020822,2]
[313812586,1707735047895,-680.38989099,0.00020822,2]
[313812588,1707735047904,-531.29348456,0.00020822,2]
[313812590,1707735047913,-680.38989099,0.00020822,2]
[313812592,1707735047922,-531.29348456,0.00020822,2]
[313812594,1707735047931,-680.38989099,0.00020822,2]
[313812596,1707735047940,-531.29348456,0.00020822,2]
[313812598,1707735047949,-680.38989099,0.00020822,2]
[313812600,1707735047960,-531.29348456,0.00020822,2]
[313812602,1707735047969,-680.38989099,0.00020822,2]
[313812604,1707735047978,-531.29348456,0.00020822,2]
[313812606,1707735047987,-680.38989099,0.00020822,2]
[313812608,1707735047996,-531.29348456,0.00020822,2]
[313812610,1707735048005,-680.38989099,0.00020822,2]
[313812612,1707735048014,-531.29348456,0.00020822,2]
[313812614,1707735048024,-680.38989099,0.00020822,2]
[313812616,1707735048033,-680.38989099,0.00020822,2]
[313812618,1707735048042,-531.29348456,0.00020822,2]
[313812620,1707735048051,-680.38989099,0.00020822,2]
[313812622,1707735048061,-531.29348456,0.00020822,2]
[313812624,1707735048069,-531.29348456,0.00020822,2]
[313812626,1707735048079,-680.38989099,0.00020822,2]
[313812628,1707735048088,-680.38989099,0.00020822,2]
[313812630,1707735048097,-531.29348456,0.00020822,2]
[313812632,1707735048106,-680.38989099,0.00020822,2]
[313812634,1707735048115,-531.29348456,0.00020822,2]
[313812636,1707735048124,-680.38989099,0.00020822,2]
[313812638,1707735048133,-531.29348456,0.00020822,2]
[313812640,1707735048142,-680.38989099,0.00020822,2]
[313812642,1707735048152,-531.29348456,0.00020822,2]
[313812644,1707735048162,-680.38989099,0.00020822,2]
[313812646,1707735048171,-531.29348456,0.00020822,2]
[313812648,1707735048180,-680.38989099,0.00020822,2]
[313812651,1707735048190,-680.38989099,0.00020822,2]
[313812653,1707735048200,-531.29348456,0.00020822,2]
[313812655,1707735048209,-680.38989099,0.00020822,2]
[313812656,1707735048218,-680.38989099,0.00020822,2]
[313812658,1707735048228,-680.38989099,0.00020822,2]
[313812660,1707735048237,-531.29348456,0.00020822,2]
[313812662,1707735048246,-531.29348456,0.00020822,2]
[313812664,1707735048255,-680.38989099,0.00020822,2]
[313812666,1707735048264,-531.29348456,0.00020822,2]
[313812669,1707735048273,-531.29348456,0.00020822,2]
[313812671,1707735048282,-680.38989099,0.00020822,2]
[313812673,1707735048292,-680.38989099,0.00020822,2]
[313812676,1707735048301,-531.29348456,0.00020822,2]
[313812678,1707735048309,-531.29348456,0.00020822,2]
[313812680,1707735048317,-680.38989099,0.00020822,2]
[313812682,1707735048325,-680.38989099,0.00020822,2]
[313812684,1707735048334,-531.29348456,0.00020822,2]
[313812686,1707735048342,-531.29348456,0.00020822,2]
[313812688,1707735048349,-531.29348456,0.00020822,2]
[313812690,1707735048356,-531.29348456,0.00020822,2]
[313812692,1707735048366,-531.29348456,0.00020822,2]
[313812695,1707735048375,-680.38989099,0.00020822,2]
[313812696,1707735048384,-680.38989099,0.00020822,2]
[313812698,1707735048394,-531.29348456,0.00020822,2]
[313812701,1707735048403,-531.29348456,0.00020822,2]
[313812702,1707735048412,-531.29348456,0.00020822,2]
[313812705,1707735048421,-531.29348456,0.00020822,2]
[313812706,1707735048430,-672.43728188,0.00020822,2]
[313812708,1707735048444,-672.43728188,0.00020822,2]
[313812711,1707735048453,-527.4985311,0.00020822,2]
[313812713,1707735048462,-672.43728188,0.00020822,2]
[313812714,1707735048471,-672.43728188,0.00020822,2]
[313812717,1707735048481,-527.4985311,0.00020822,2]
[313812719,1707735048490,-527.4985311,0.00020822,2]
[313812721,1707735048499,-672.43728188,0.00020822,2]
[313812722,1707735048508,-527.4985311,0.00020822,2]
[313812725,1707735048517,-672.43728188,0.00020822,2]
[313812727,1707735048526,-527.4985311,0.00020822,2]
[313812729,1707735048535,-672.43728188,0.00020822,2]
[313812731,1707735048544,-527.4985311,0.00020822,2]
[313812733,1707735048553,-672.43728188,0.00020822,2]
[313812735,1707735048562,-527.4985311,0.00020822,2]
[313812737,1707735048571,-672.43728188,0.00020822,2]
[313812738,1707735048580,-527.4985311,0.00020822,2]
[313812740,1707735048589,-527.4985311,0.00020822,2]
[313812742,1707735048598,-672.43728188,0.00020822,2]
[313812744,1707735048607,-527.4985311,0.00020822,2]
[313812746,1707735048616,-527.4985311,0.00020822,2]
[313812748,1707735048625,-527.4985311,0.00020822,2]
[313812750,1707735048634,-672.43728183,0.00020822,2]
[313812753,1707735048643,-2146.08148438,0.00020822,2]
[313812754,1707735048652,-358.77419474,0.00020822,2]
[313812756,1707735048661,-244.44,0.00020822,2]
[313812759,1707735048671,-500.0,0.00020822,2]
[313812760,1707735048679,-375.42230591,0.00020822,2]
[313812763,1707735048693,-2146.08148438,0.00020822,2]
[313812765,1707735048705,-500.0,0.00020822,2]
[313812768,1707735048718,-500.0,0.00020822,2]
[313812770,1707735048730,-2146.08148438,0.00020822,2]
[313812772,1707735048742,-500.0,0.00020822,2]
[313812775,1707735048753,-2146.08148438,0.00020822,2]
[313812777,1707735048763,-500.0,0.00020822,2]
[313812779,1707735048773,-500.0,0.00020822,2]
[313812781,1707735048785,-500.0,0.00020822,2]
[313812783,1707735048796,-2146.08148438,0.00020822,2]
[313812785,1707735048807,-2146.08148438,0.00020822,2]
[313812788,1707735048819,-500.0,0.00020822,2]
[313812790,1707735048831,-500.0,0.00020822,2]
[313812793,1707735048843,-493.31047473,0.00020822,2]
[313812795,1707735048854,-2146.08148438,0.00020822,2]
[313812797,1707735048865,-500.0,0.00020822,2]
[313812799,1707735048876,-2146.08148438,0.00020822,2]
[313812801,1707735048887,-500.0,0.00020822,2]
[313812803,1707735048897,-2146.08148438,0.00020822,2]
[313812806,1707735048907,-487.96722483,0.00020822,2]
[313812808,1707735048919,-563.22654798,0.00020822,2]
[313812810,1707735048930,-151.0,0.00020822,2]
[313812812,1707735048941,-151.668409,0.00020822,2]
[313812815,1707735048953,-151.0,0.00020822,2]
[313812817,1707735048964,-151.0,0.00020822,2]
[313812819,1707735048975,-151.320821,0.00020822,2]
[313812821,1707735048986,-151.0,0.00020822,2]
[313812824,1707735048998,-151.0,0.00020822,2]
[313812826,1707735049010,-153.188757,0.00020822,2]
[313812828,1707735049020,-151.0,0.00020822,2]
[313812830,1707735049030,-151.0,0.00020822,2]
[313812832,1707735049041,-151.0,0.00020822,2]
[313812835,1707735049054,-151.0,0.00020822,2]
[313812837,1707735049067,-152.708919,0.00020822,2]
[313812839,1707735049077,-190.152765,0.00020822,2]
[313812841,1707735049090,-190.152765,0.00020822,2]
[313812844,1707735049100,-190.152765,0.00020822,2]
[313812846,1707735049110,-190.152765,0.00020822,2]
[313812848,1707735049121,-190.152765,0.00020822,2]
[313812850,1707735049131,-190.152765,0.00020822,2]
[313812852,1707735049143,-190.152765,0.00020822,2]
[313812855,1707735049154,-190.152765,0.00020822,2]
[313812857,1707735049165,-151.0,0.00020822,2]
[313812859,1707735049177,-151.0,0.00020822,2]
[313812862,1707735049190,-151.0,0.00020822,2]
[313812864,1707735049202,-151.0,0.00020822,2]
[313812866,1707735049214,-151.0,0.00020822,2]
[313812869,1707735049226,-151.0,0.00020822,2]
[313812871,1707735049237,-197.819428,0.00020822,2]
[313812873,1707735049248,-151.0,0.00020822,2]
[313812875,1707735049259,-151.0,0.00020822,2]
[313812877,1707735049269,-306.0,0.000209,2]
[313812879,1707735049279,-1000.0,0.00021,21]
[313812881,1707735049289,-151.0,0.00021015,2]
[313812883,1707735049299,-532.85932722,0.00021045,2]
[313812885,1707735049310,-500.0,0.00021045,2]
[313812888,1707735049321,-500.0,0.00021045,2]
[313812890,1707735049333,-500.0,0.00021045,2]
[313812892,1707735049344,-210.21827643,0.00021045,2]
[313812894,1707735049354,-500.0,0.00021045,2]
[313812897,1707735049366,-621.43408743,0.00021045,2]
[313812899,1707735049377,-153.10903402,0.00021045,2]
[313812901,1707735049387,-500.0,0.00021045,2]
[313812903,1707735049397,-500.0,0.00021045,2]
[313812905,1707735049407,-500.0,0.00021045,2]
[313812907,1707735049416,-500.0,0.00021045,2]
[313812909,1707735049427,-500.0,0.00021045,2]
[313812911,1707735049440,-275.33659044,0.00021045,2]
[313812913,1707735049451,-500.0,0.00021045,2]
[313812916,1707735049461,-500.0,0.00021045,2]
[313812918,1707735049471,-500.0,0.00021045,2]
[313812920,1707735049483,-500.0,0.00021045,2]
[313812922,1707735049493,-500.0,0.00021045,2]
[313812924,1707735049504,-498.67038682,0.00021045,2]
[313812926,1707735049516,-465.34159715,0.00021045,2]
[313812928,1707735049526,-500.0,0.00021045,2]
[313812931,1707735049536,-500.0,0.00021045,2]
[313812933,1707735049546,-510.11697747,0.00021045,2]
[313812935,1707735049557,-500.0,0.00021045,2]
[313812937,1707735049567,-500.0,0.00021045,2]
[313812939,1707735049579,-500.0,0.00021045,2]
[313812941,1707735049590,-500.0,0.00021045,2]
[313812943,1707735049600,-500.0,0.00021045,2]
[313812946,1707735049611,-500.0,0.00021045,2]
[313812948,1707735049621,-500.0,0.00021046,2]
[313812950,1707735049631,-500.0,0.00021046,2]
[313812952,1707735049641,-4510.66,0.00021047,2]
[313812954,1707735049651,-6435.92,0.00021047,2]
[313812956,1707735049662,-500.0,0.00021047,2]
[313812958,1707735049672,-500.0,0.00021047,2]
[313812961,1707735049682,-151.0,0.00021048,2]
[313812963,1707735049693,-2020.77,0.00021048,2]
[313812965,1707735049704,-500.0,0.00021048,2]
[313812967,1707735049714,-500.0,0.00021048,2]
[313812969,1707735049724,-774.58,0.00021048,2]
[313812971,1707735049735,-190.152765,0.00021048,2]
[313812973,1707735049745,-190.152765,0.00021048,2]
[313812975,1707735049755,-151.0,0.00021048,2]
[313812978,1707735049766,-5879.84,0.00021048,2]
[313812980,1707735049776,-500.0,0.00021048,2]
[313812982,1707735049788,-477.73,0.00021048,2]
[313812984,1707735049798,-500.0,0.00021048,2]
[313812986,1707735049809,-1440.13,0.00021048,2]
[313812988,1707735049819,-2453.85,0.00021048,2]
[313812990,1707735049829,-533.97,0.00021048,2]
[313812992,1707735049839,-500.0,0.00021048,2]
[313812994,1707735049849,-500.0,0.00021049,2]
[313812996,1707735049859,-500.0,0.00021049,2]
[313812999,1707735049870,-814.48,0.00021049,2]
[313813001,1707735049880,-500.0,0.00021049,2]
[313813003,1707735049892,-500.0,0.00021049,2]
[313813005,1707735049902,-500.0,0.00021049,2]
[313813007,1707735049912,-500.0,0.00021049,2]
[313813009,1707735049925,-500.0,0.00021049,2]
[313813011,1707735049935,-675.37,0.00021049,2]
[313813013,1707735049946,-500.0,0.00021049,2]
[313813015,1707735049956,-759.19,0.00021049,2]
[313813017,1707735049967,-500.0,0.00021049,2]
[313813019,1707735049977,-512.16,0.00021049,2]
[313813021,1707735049988,-944.32,0.00021049,2]
[313813023,1707735049998,-500.0,0.00021049,2]
[313813025,1707735050008,-603.25,0.00021049,2]
[313813028,1707735050020,-5350.77,0.00021049,2]
[313813030,1707735050031,-646.94,0.00021049,2]
[313813032,1707735050042,-3234.08,0.00021049,2]
[313813047,1707735050158,-500.0,0.0002105,2]
[313813050,1707735050203,-500.0,0.0002105,2]
[313813052,1707735050215,-500.0,0.0002105,2]
[313813055,1707735050225,-151.0,0.0002105,2]
[313813057,1707735050235,-545.20014378,0.00021157,2]
[313813058,1707735050245,-163.56004314,0.00021157,2]
[313813060,1707735050254,-483.33464624,0.00021157,2]
[313813062,1707735050263,-190.152765,0.00021157,2]
[313813064,1707735050273,-190.152765,0.00021157,2]
[313813066,1707735050282,-500.0,0.00021185,2]
[313813068,1707735050292,-166.666666,0.00021261,2]
[313813070,1707735050301,-500.0,0.0002132,2]
[313813072,1707735050309,-500.0,0.0002132,2]
[313813074,1707735050319,-6435.92,0.00021321,2]
[313813076,1707735050328,-4510.66,0.00021321,2]
[313813078,1707735050340,-500.0,0.00021321,2]
[313813080,1707735050350,-500.0,0.00021321,2]
[313813082,1707735050360,-2020.77,0.00021322,2]
[313813084,1707735050369,-500.0,0.00021322,2]
[313813086,1707735050379,-500.0,0.00021322,2]
[313813088,1707735050389,-774.58,0.00021322,2]
[313813090,1707735050398,-5879.84,0.00021322,2]
[313813092,1707735050407,-500.0,0.00021322,2]
[313813094,1707735050417,-500.0,0.00021322,2]
[313813096,1707735050426,-1440.13,0.00021322,2]
[313813098,1707735050438,-2453.85,0.00021322,2]
[313813100,1707735050447,-533.97,0.00021322,2]
[313813102,1707735050457,-163.24446479,0.00021322,2]
[313813104,1707735050466,-500.0,0.00021323,2]
[313813106,1707735050476,-497.29,0.00021323,2]
[313813108,1707735050485,-814.48,0.00021323,2]
[313813110,1707735050494,-500.69180626,0.00021323,2]
[313813112,1707735050503,-500.0,0.00021323,2]
[313813114,1707735050512,-500.0,0.00021323,2]
[313813116,1707735050523,-500.0,0.00021323,2]
[313813117,1707735050533,-500.0,0.00021323,2]
[313813119,1707735050542,-675.37,0.00021323,2]
[313813121,1707735050551,-500.0,0.00021323,2]
[313813123,1707735050561,-759.19,0.00021323,2]
[313813125,1707735050570,-190.152765,0.00021323,2]
[313813127,1707735050579,-190.152765,0.00021323,2]
[313813129,1707735050588,-500.0,0.00021323,2]
[313813131,1707735050598,-512.16,0.00021323,2]
[313813133,1707735050608,-944.32,0.00021323,2]
[313813135,1707735050617,-500.0,0.00021323,2]
[313813137,1707735050626,-151.0,0.00021323,2]
[313813139,1707735050635,-603.25,0.00021323,2]
[313813141,1707735050645,-5350.77,0.00021323,2]
[313813143,1707735050653,-646.94,0.00021323,2]
[313813145,1707735050663,-3234.08,0.00021323,2]
[313813147,1707735050672,-500.0,0.00021324,2]
[313813149,1707735050681,-500.0,0.00021324,2]
[313813151,1707735050691,-200.0,0.00021515,7]
[313813153,1707735050700,-151.0,0.0002153,2]
[313813155,1707735050709,-155.95917552,0.00021561,2]
[313813157,1707735050718,-1945.89697518,0.00021561,2]
[313813158,1707735050728,-1961.03902914,0.00021562,2]
[313813160,1707735050737,-500.0,0.00021562,2]
[313813162,1707735050747,-512.16,0.00021562,2]
[313813164,1707735050757,-500.0,0.00021594,2]
[313813166,1707735050767,-500.0,0.00021594,2]
[313813168,1707735050776,-6435.92,0.00021595,2]
[313813170,1707735050785,-4510.66,0.00021595,2]
[313813172,1707735050795,-500.0,0.00021595,2]
[313813174,1707735050804,-500.0,0.00021595,2]
[313813176,1707735050814,-2020.77,0.00021596,2]
[313813178,1707735050824,-500.0,0.00021596,2]
[313813180,1707735050833,-516.4,0.00021596,2]
[313813182,1707735050843,-774.58,0.00021596,2]
[313813184,1707735050852,-190.152765,0.00021596,2]
[313813186,1707735050862,-190.152765,0.00021596,2]
[313813188,1707735050871,-151.0,0.00021596,2]
[313813190,1707735050880,-5879.84,0.00021596,2]
[313813192,1707735050890,-500.0,0.00021596,2]
[313813194,1707735050900,-500.0,0.00021596,2]
[313813196,1707735050910,-1440.13,0.00021596,2]
[313813198,1707735050919,-2453.85,0.00021596,2]
[313813200,1707735050928,-533.97,0.00021596,2]
[313813202,1707735050939,-500.0,0.00021597,2]
[313813204,1707735050949,-814.48,0.00021597,2]
[313813206,1707735050958,-500.0,0.00021597,2]
[313813208,1707735050968,-500.0,0.00021597,2]
[313813210,1707735050977,-500.0,0.00021597,2]
[313813212,1707735050986,-500.0,0.00021597,2]
[313813214,1707735050997,-675.37,0.00021597,2]
[313813216,1707735051008,-500.0,0.00021597,2]
[313813218,1707735051018,-759.19,0.00021597,2]
[313813220,1707735051027,-500.0,0.00021597,2]
[313813222,1707735051036,-512.16,0.00021597,2]
[313813223,1707735051046,-944.32,0.00021597,2]
[313813225,1707735051055,-500.0,0.00021597,2]
[313813227,1707735051065,-603.25,0.00021597,2]
[313813229,1707735051074,-5350.77,0.00021597,2]
[313813231,1707735051084,-646.94,0.00021597,2]
[313813233,1707735051093,-3234.08,0.00021597,2]
[313813235,1707735051103,-200.0,0.0002162,2]
[313813237,1707735051112,-200.0,0.0002162,2]
[313813239,1707735051121,-200.0,0.0002162,2]
[313813241,1707735051131,-200.0,0.0002162,2]
[313813243,1707735051141,-200.0,0.0002162,2]
[313813245,1707735051150,-200.0,0.0002162,2]
[313813247,1707735051159,-200.0,0.0002162,2]
[313813249,1707735051169,-200.0,0.0002162,2]
[313813251,1707735051178,-200.84794,0.0002162,2]
[313813253,1707735051187,-317.0,0.000217,9]
[313813255,1707735051196,-500.0,0.00021736,2]
[313813257,1707735051206,-512.16,0.00021736,2]
[313813259,1707735051215,-166.666666,0.00021782,2]
[313813261,1707735051225,-569.51350981,0.00021819,3]
[313813263,1707735051235,-3518.46658089,0.00021838,2]
[313813265,1707735051244,-500.0,0.00021868,2]
[313813267,1707735051254,-500.0,0.00021868,2]
[313813268,1707735051263,-190.152765,0.00021869,2]
[313813270,1707735051273,-190.152767,0.00021869,2]
[313813272,1707735051282,-6435.92,0.00021869,2]
[313813274,1707735051291,-4510.66,0.00021869,2]
[313813276,1707735051302,-151.0,0.00021869,2]
[313813278,1707735051311,-500.0,0.00021869,2]
[313813280,1707735051320,-500.0,0.00021869,2]
[313813282,1707735051329,-2020.77,0.0002187,2]
[313813284,1707735051338,-500.0,0.0002187,2]
[313813286,1707735051348,-774.58,0.0002187,2]
[313813288,1707735051357,-5879.84,0.0002187,2]
[313813290,1707735051366,-500.0,0.0002187,2]